Workbook

Sheet Apoio Cativo (hidden)
A6: Apoio
A7: =$B$1&"Residencial"&B7 -> Residencial
A8: =$B$1&"Residencial"&B8 -> Residencial
A9: Residencial
A10: Residencial
A11: Residencial
A12: Residencial
A13: Residencial
A14: Residencial
A15: Residencial
A16: Residencial
A17: Residencial
A18: Residencial
A24: Apoio
A25: =$B$1&"Industrial"&B25 -> Industrial
A26: =$B$1&"Industrial"&B26 -> Industrial
A27: Industrial
A28: Industrial
A29: Industrial
A30: Industrial
A31: Industrial
A32: Industrial
A33: Industrial
A34: Industrial
A35: Industrial
A36: Industrial
A42: Apoio
A43: =$B$1&"Comercial"&B43 -> Comercial
A44: =$B$1&"Comercial"&B44 -> Comercial
A45: Comercial
A46: Comercial
A47: Comercial
A48: Comercial
A49: Comercial
A50: Comercial
A51: Comercial
A52: Comercial
A53: Comercial
A54: Comercial
A60: Apoio
A61: =$B$1&"Rural"&B61 -> Rural
A62: =$B$1&"Rural"&B62 -> Rural
A63: Rural
A64: Rural
A65: Rural
A66: Rural
A67: Rural
A68: Rural
A69: Rural
A70: Rural
A71: Rural
A72: Rural
A78: Apoio
A79: =$B$1&"Poder Público"&B79 -> Poder Público
A80: =$B$1&"Poder Público"&B80 -> Poder Público
A81: Poder Público
A82: Poder Público
A83: Poder Público
A84: Poder Público
A85: Poder Público
A86: Poder Público
A87: Poder Público
A88: Poder Público
A89: Poder Público
A90: Poder Público
A96: Apoio
A97: =$B$1&"Iluminação Pública"&B97 -> Iluminação Pública
A98: =$B$1&"Iluminação Pública"&B98 -> Iluminação Pública
A99: Iluminação Pública
A100: Iluminação Pública
A101: Iluminação Pública
A102: Iluminação Pública
A103: Iluminação Pública
A104: Iluminação Pública
A105: Iluminação Pública
A106: Iluminação Pública
A107: Iluminação Pública
A108: Iluminação Pública
A114: Apoio
A115: =$B$1&"Serviço Público"&B115 -> Serviço Público
A116: =$B$1&"Serviço Público"&B116 -> Serviço Público
A117: Serviço Público
A118: Serviço Público
A119: Serviço Público
A120: Serviço Público
A121: Serviço Público
A122: Serviço Público
A123: Serviço Público
A124: Serviço Público
A125: Serviço Público
A126: Serviço Público
A132: Apoio
A133: =$B$1&"Próprio"&B133 -> Próprio
A134: =$B$1&"Próprio"&B134 -> Próprio
A135: Próprio
A136: Próprio
A137: Próprio
A138: Próprio
A139: Próprio
A140: Próprio
A141: Próprio
A142: Próprio
A143: Próprio
A144: Próprio
A150: Apoio
A151: =$B$1&"Outros"&B151 -> Outros
A152: =$B$1&"Outros"&B152 -> Outros
A153: Outros
A154: Outros
A155: Outros
A156: Outros
A157: Outros
A158: Outros
A159: Outros
A160: Outros
A161: Outros
A162: Outros

Sheet Apoio Livre (hidden)
A6: Apoio
A7: =$C$1&B7 -> 
A8: =$C$1&B8 -> 
A24: Apoio
A25: =$C$1&B25 -> 
A26: =$C$1&B26 -> 
A42: Apoio
A43: =$C$1&B43 -> 
A44: =$C$1&B44 -> 
A60: Apoio
A61: =$C$1&B61 -> 
A62: =$C$1&B62 -> 
A78: Apoio
A79: =$C$1&B79 -> 
A80: =$C$1&B80 -> 
A96: Apoio
A97: =$C$1&B97 -> 
A98: =$C$1&B98 -> 
A114: Apoio
A115: =$C$1&B115 -> 
A116: =$C$1&B116 -> 
A132: Apoio
A133: =$C$1&B133 -> 
A134: =$C$1&B134 -> 
A150: Apoio
A151: =$C$1&B151 -> 
A152: =$C$1&B152 -> 

Sheet Por Segmento
B2: Descrição Valores em GWh | C2: Mês | F2: Trimestre | I2: Acumulado
C3: 2021-03-01 | D3: 2020-03-01 | E3: Var. % | F3: 1T21 | G3: 1T20 | H3: Var. % | I3: 3M21 | J3: 3M20 | K3: Var. %
B7: Residencial | C7: 1239.4387 | D7: 1193.546922 | E7: 3.844991525 | F7: 3596.096588 | G7: 3557.342829 | H7: 1.089401862 | I7: 3596.096588 | J7: 3557.342829 | K7: 1.089401862
B8: Industrial | C8: 638.8688799 | D8: 613.6090164 | E8: 4.116605664 | F8: 1844.153299 | G8: 1803.041651 | H8: 2.280127491 | I8: 1844.153299 | J8: 1803.041651 | K8: 2.280127491
B9: Cativo | C9: 160.124006 | D9: 186.449 | E9: -14.11913928 | F9: 479.809189 | G9: 553.914574 | H9: -13.37848623 | I9: 479.809189 | J9: 553.914574 | K9: -13.37848623
B10: Livre | C10: 478.7448739 | D10: 427.1600164 | E10: 12.07623737 | F10: 1364.34411 | G10: 1249.127077 | H10: 9.223804006 | I10: 1364.34411 | J10: 1249.127077 | K10: 9.223804006
B11: Comercial | C11: 581.3927077 | D11: 615.140077 | E11: -5.486127561 | F11: 1688.435848 | G11: 1851.24676 | H11: -8.794662914 | I11: 1688.435848 | J11: 1851.24676 | K11: -8.794662914
B12: Cativo | C12: 481.814843 | D12: 540.101721 | E12: -10.79183341 | F12: 1410.763127 | G12: 1621.645653 | H12: -13.00422972 | I12: 1410.763127 | J12: 1621.645653 | K12: -13.00422972
B13: Livre | C13: 99.57786474 | D13: 75.03835604 | E13: 32.70262036 | F13: 277.6727209 | G13: 229.6011072 | H13: 20.93701303 | I13: 277.6727209 | J13: 229.6011072 | K13: 20.93701303
B14: Rural | C14: 299.4132805 | D14: 290.975984 | E14: 2.899653927 | F14: 890.901058 | G14: 867.996012 | H14: 2.638842317 | I14: 890.901058 | J14: 867.996012 | K14: 2.638842317
B15: Cativo | C15: 291.979428 | D15: 285.043074 | E15: 2.433440639 | F15: 867.059115 | G15: 846.445201 | H15: 2.435351276 | I15: 867.059115 | J15: 846.445201 | K15: 2.435351276
B16: Livre | C16: 7.43385253 | D16: 5.932909984 | E16: 25.29858956 | F16: 23.84194304 | G16: 21.55081097 | H16: 10.6313033 | I16: 23.84194304 | J16: 21.55081097 | K16: 10.6313033
B17: Outros | C17: 373.6537759 | D17: 396.6658254 | E17: -5.801369335 | F17: 1159.674502 | G17: 1173.462991 | H17: -1.175025437 | I17: 1159.674502 | J17: 1173.462991 | K17: -1.175025437
B18: Cativo | C18: 357.05611 | D18: 386.797766 | E18: -7.689200563 | F18: 1112.585346 | G18: 1145.390325 | H18: -2.864087315 | I18: 1112.585346 | J18: 1145.390325 | K18: -2.864087315
B19: Livre | C19: 16.59766589 | D19: 9.868059448 | E19: 68.19584412 | F19: 47.08915646 | G19: 28.0726661 | H19: 67.74023635 | I19: 47.08915646 | J19: 28.0726661 | K19: 67.74023635
B20: 1 Vendas de energia no mercado cativo | C20: 2530.413087 | D20: 2591.938483 | E20: -2.373721306 | F20: 7466.313365 | G20: 7724.738582 | H20: -3.345423463 | I20: 7466.313365 | J20: 7724.738582 | K20: -3.345423463
B21: 2 Energia associada aos consumidores livres (TUSD) | C21: 602.3542571 | D21: 517.9993418 | E21: 16.28475336 | F21: 1712.947931 | G21: 1528.351661 | H21: 12.07812797 | I21: 1712.947931 | J21: 1528.351661 | K21: 12.07812797
B22: 3 Mercado cativo + TUSD (1+2) | C22: 3132.767344 | D22: 3109.937825 | E22: 0.7340828175 | F22: 9179.261296 | G22: 9253.090243 | H22: -0.7978842261 | I22: 9179.261296 | J22: 9253.090243 | K22: -0.7978842261
B23: 4 Fornecimento não faturado | C23: 39.9881412 | D23: 62.263144 | E23: -35.77558306 | F23: -59.379296 | G23: 26.326828 | H23: - | I23: -59.379296 | J23: 26.326828 | K23: -
B24: 5 Mercado cativo + TUSD + fornecimento não faturado (3+4) | C24: 3172.755485 | D24: 3172.200969 | E24: 0.01748049425 | F24: 9119.882 | G24: 9279.417071 | H24: -1.71923592 | I24: 9119.882 | J24: 9279.417071 | K24: -1.71923592

Sheet Por Empresa
B2: Empresas | C2: ='Por Segmento'!C3 -> 2021-03-01 | G2: ='Por Segmento'!I3 -> 3M21
C3: Vendas de energia (GWh) | G3: Vendas de energia (GWh)
C4: Mercado Cativo + TUSD | D4: Var. (1) (%) | E4: Mercado Cativo + TUSD + Não Faturado | F4: Var. (1) (%) | G4: Mercado Cativo + TUSD | H4: Var. (1) (%) | I4: Mercado Cativo + TUSD + Não Faturado | J4: Var. (1) (%)
B9: Região Norte | C9: 518.3049457 | D9: -6.279633112 | E9: 540.2440727 | F9: -4.365843437 | G9: 1586.9762 | H9: -4.038842485 | I9: 1584.439525 | J9: -3.874576042
B10: Energisa Tocantins (ETO) | C10: 183.6725254 | D10: -4.382868431 | E10: 186.0530764 | F10: -5.847484177 | G10: 569.7195441 | H10: 0.1631180991 | I10: 561.1598071 | J10: -1.497526639
B11: Energisa Acre (EAC) | C11: 84.78254627 | D11: -10.27130551 | E11: 89.18414327 | F11: -4.55572473 | G11: 264.3764333 | H11: -5.101687972 | I11: 256.3266093 | J11: -7.578150656
B12: Energisa Rondõnia (ERO) | C12: 249.849874 | D12: -6.231553015 | E12: 265.006853 | F12: -3.231944522 | G12: 752.8802227 | H12: -6.635535578 | I12: 766.9531087 | J12: -4.282702395
B13: Região Nordeste | C13: 710.9794752 | D13: 1.100030409 | E13: 720.5064142 | F13: 0.2252504195 | G13: 2099.747717 | H13: -1.211571709 | I13: 2113.571875 | J13: -0.984946828
B14: Energisa Paraíba (EPB) | C14: 389.149188 | D14: 1.410593595 | E14: 392.424727 | F14: -0.09413734975 | G14: 1176.443348 | H14: 0.007011430013 | I14: 1182.655549 | J14: 0.2794140056
B15: Energisa Sergipe (ESE) | C15: 260.8572972 | D15: -0.3536174835 | E15: 267.3289072 | F15: 0.4327531828 | G15: 748.2724343 | H15: -3.465856276 | I15: 754.0224303 | J15: -3.37730171
B16: Energisa Borborema (EBO) | C16: 60.97299 | D16: 5.627859549 | E16: 60.75278 | F16: 1.39725374 | G16: 175.0319348 | H16: 0.5923650574 | I16: 176.8938958 | J16: 1.164250482
B17: Região Centro-Oeste | C17: 1328.94955 | D17: 1.069556434 | E17: 1349.103541 | F17: 0.4219255756 | G17: 3825.025664 | H17: -0.5140865652 | I17: 3760.411885 | J17: -2.695142006
B18: Energisa Mato Grosso (EMT) | C18: 813.7465854 | D18: 2.615923523 | E18: 811.4609244 | F18: 0.6263528188 | G18: 2328.634467 | H18: 0.3430937188 | I18: 2275.398345 | J18: -2.274737473
B19: Energisa Mato Grosso do Sul (EMS) | C19: 515.2029643 | D19: -1.280147606 | E19: 537.6426163 | F19: 0.1149527638 | G19: 1496.391197 | H19: -1.819256852 | I19: 1485.01354 | J19: -3.3323318
B20: Região Sul/Sudeste | C20: 574.5333735 | D20: 6.637031163 | E20: 562.9014577 | F20: 3.290057767 | G20: 1667.511714 | H20: 2.362246159 | I20: 1661.458714 | J20: 1.8082648
B21: Energisa Minas Gerais (EMG) | C21: 137.881957 | D21: 10.54590101 | E21: 134.240799 | F21: 7.127902797 | G21: 401.800859 | H21: 4.682075844 | I21: 404.998656 | J21: 5.112147542
B22: Energisa Nova Friburgo (ENF) | C22: 29.372213 | D22: 11.79479433 | E22: 28.411621 | F22: 6.700779675 | G22: 83.505722 | H22: 4.060655803 | I22: 83.87586 | J22: 4.299367988
B23: Energisa Sul-Sudeste (ESS) | C23: 407.2792035 | D23: 5.030272039 | E23: 400.2490377 | F23: 1.835392658 | G23: 1182.205133 | H23: 1.480912896 | I23: 1172.584198 | J23: 0.5449438791
B24: Total (Distribuidoras) | C24: 3132.767344 | D24: 0.7340828175 | E24: 3172.755485 | F24: 0.01748049425 | G24: 9179.261296 | H24: -0.7978842261 | I24: 9119.882 | J24: -1.71923592

Sheet Por Empresa e Segmento >>>

Sheet EMG
B2: Descrição Valores em GWh | C2: Mês | F2: Trimestre | I2: Acumulado
C3: ='Por Segmento'!C3 -> 2021-03-01 | D3: ='Por Segmento'!D3 -> 2020-03-01 | E3: ='Por Segmento'!E3 -> Var. % | F3: ='Por Segmento'!F3 -> 1T21 | G3: ='Por Segmento'!G3 -> 1T20 | H3: ='Por Segmento'!H3 -> Var. % | I3: ='Por Segmento'!I3 -> 3M21 | J3: ='Por Segmento'!J3 -> 3M20 | K3: ='Por Segmento'!K3 -> Var. %
B7: Residencial | C7: 51.272238 | D7: 46.222861 | E7: =IF(OR(AND(C7<=0,D7>=0),AND(C7>=0,D7<=0),C7=D7),"-",IF((C7/D7-1)*100>0,(C7/D7-1)*100,(C7/D7-1)*100)) -> 10.92398197 | F7: 151.365383 | G7: 142.143872 | H7: =IF(OR(AND(F7<=0,G7>=0),AND(F7>=0,G7<=0),F7=G7),"-",IF((F7/G7-1)*100>0,(F7/G7-1)*100,(F7/G7-1)*100)) -> 6.487448857 | I7: 151.365383 | J7: 142.143872 | K7: =IF(OR(AND(I7<=0,J7>=0),AND(I7>=0,J7<=0),I7=J7),"-",IF((I7/J7-1)*100>0,(I7/J7-1)*100,(I7/J7-1)*100)) -> 6.487448857
B8: Industrial | C8: 38.2491 | D8: 31.1113435 | E8: =IF(OR(AND(C8<=0,D8>=0),AND(C8>=0,D8<=0),C8=D8),"-",IF((C8/D8-1)*100>0,(C8/D8-1)*100,(C8/D8-1)*100)) -> 22.94261738 | F8: 106.934277 | G8: 95.83940875 | H8: =IF(OR(AND(F8<=0,G8>=0),AND(F8>=0,G8<=0),F8=G8),"-",IF((F8/G8-1)*100>0,(F8/G8-1)*100,(F8/G8-1)*100)) -> 11.57651992 | I8: 106.934277 | J8: 95.83940875 | K8: =IF(OR(AND(I8<=0,J8>=0),AND(I8>=0,J8<=0),I8=J8),"-",IF((I8/J8-1)*100>0,(I8/J8-1)*100,(I8/J8-1)*100)) -> 11.57651992
B9: Cativo Industrial | C9: 8.969765 | D9: 8.835236 | E9: 1.52264184 | F9: 25.821646 | G9: 27.176191 | H9: -4.984307771 | I9: 25.821646 | J9: 27.176191 | K9: -4.984307771
B10: Livre Industrial | C10: 29.279335 | D10: 22.2761075 | E10: 31.43829101 | F10: 81.112631 | G10: 68.66321775 | H10: 18.13112413 | I10: 81.112631 | J10: 68.66321775 | K10: 18.13112413
B11: Comercial | C11: 20.440854 | D11: 19.37968175 | E11: 5.475694914 | F11: 58.982326 | G11: 61.08027531 | H11: -3.434741082 | I11: 58.982326 | J11: 61.08027531 | K11: -3.434741082
B12: Cativo Comercial | C12: 19.02507 | D12: 18.2176 | E12: 4.432362111 | F12: 54.831954 | G12: 57.505635 | H12: -4.649424356 | I12: 54.831954 | J12: 57.505635 | K12: -4.649424356
B13: Livre Comercial | C13: 1.415784 | D13: 1.162081752 | E13: 21.83170397 | F13: 4.150372 | G13: 3.574640309 | H13: 16.10600344 | I13: 4.150372 | J13: 3.574640309 | K13: 16.10600344
B14: Rural | C14: 15.2881 | D14: 14.461695 | E14: 5.714440804 | F14: 46.493998 | G14: 44.393152 | H14: 4.732365028 | I14: 46.493998 | J14: 44.393152 | K14: 4.732365028
B15: Cativo Rural | C15: 15.2881 | D15: 14.461695 | E15: 5.714440804 | F15: 46.493998 | G15: 44.393152 | H15: 4.732365028 | I15: 46.493998 | J15: 44.393152 | K15: 4.732365028
B16: Livre Rural | C16: 0 | D16: 0 | E16: - | F16: 0 | G16: 0 | H16: - | I16: 0 | J16: 0 | K16: -
B17: Outros | C17: 12.631665 | D17: 13.552659 | E17: -6.795670134 | F17: 38.024875 | G17: 40.372955 | H17: -5.815972598 | I17: 38.024875 | J17: 40.372955 | K17: -5.815972598
B18: Cativo Outros | C18: 12.631665 | D18: 13.552659 | E18: -6.795670134 | F18: 38.024875 | G18: 40.372955 | H18: -5.815972598 | I18: 38.024875 | J18: 40.372955 | K18: -5.815972598
B19: Livre Outros | C19: 0 | D19: 0 | E19: - | F19: 0 | G19: 0 | H19: - | I19: 0 | J19: 0 | K19: -
B20: 1 Vendas de energia no mercado cativo | C20: 107.186838 | D20: 101.290051 | E20: 5.821684303 | F20: 316.537856 | G20: 311.591805 | H20: 1.587349513 | I20: 316.537856 | J20: 311.591805 | K20: 1.587349513
B21: 2 Energia associada aos consumidores livres (TUSD) | C21: 30.695119 | D21: 23.43818925 | E21: 30.96198973 | F21: 85.263003 | G21: 72.23785806 | H21: 18.03091244 | I21: 85.263003 | J21: 72.23785806 | K21: 18.03091244
B22: 3 Mercado cativo + TUSD (1+2) | C22: 137.881957 | D22: 124.7282403 | E22: 10.54590101 | F22: 401.800859 | G22: 383.8296631 | H22: 4.682075844 | I22: 401.800859 | J22: 383.8296631 | K22: 4.682075844
B23: ='Por Segmento'!B23 -> 4 Fornecimento não faturado | C23: -3.641158 | D23: 0.580662 | E23: - | F23: 3.197797 | G23: 1.471813 | H23: 117.2692455 | I23: 3.197797 | J23: 1.471813 | K23: 117.2692455
B24: 5 Mercado cativo + TUSD + fornecimento não faturado (3+4) | C24: 134.240799 | D24: 125.3089023 | E24: 7.127902797 | F24: 404.998656 | G24: 385.3014761 | H24: 5.112147542 | I24: 404.998656 | J24: 385.3014761 | K24: 5.112147542

Sheet ENF
B2: Descrição Valores em GWh | C2: Mês | F2: Trimestre | I2: Acumulado
C3: ='Por Segmento'!C3 -> 2021-03-01 | D3: ='Por Segmento'!D3 -> 2020-03-01 | E3: ='Por Segmento'!E3 -> Var. % | F3: ='Por Segmento'!F3 -> 1T21 | G3: ='Por Segmento'!G3 -> 1T20 | H3: ='Por Segmento'!H3 -> Var. % | I3: ='Por Segmento'!I3 -> 3M21 | J3: ='Por Segmento'!J3 -> 3M20 | K3: ='Por Segmento'!K3 -> Var. %
B7: Residencial | C7: 15.113234 | D7: 13.843114 | E7: =IF(OR(AND(C7<=0,D7>=0),AND(C7>=0,D7<=0),C7=D7),"-",IF((C7/D7-1)*100>0,(C7/D7-1)*100,(C7/D7-1)*100)) -> 9.175103232 | F7: 43.327205 | G7: 41.311509 | H7: =IF(OR(AND(F7<=0,G7>=0),AND(F7>=0,G7<=0),F7=G7),"-",IF((F7/G7-1)*100>0,(F7/G7-1)*100,(F7/G7-1)*100)) -> 4.87926016 | I7: 43.327205 | J7: 41.311509 | K7: =IF(OR(AND(I7<=0,J7>=0),AND(I7>=0,J7<=0),I7=J7),"-",IF((I7/J7-1)*100>0,(I7/J7-1)*100,(I7/J7-1)*100)) -> 4.87926016
B8: Industrial | C8: 4.603282 | D8: 3.277613 | E8: =IF(OR(AND(C8<=0,D8>=0),AND(C8>=0,D8<=0),C8=D8),"-",IF((C8/D8-1)*100>0,(C8/D8-1)*100,(C8/D8-1)*100)) -> 40.44617226 | F8: 12.433948 | G8: 10.668751 | H8: =IF(OR(AND(F8<=0,G8>=0),AND(F8>=0,G8<=0),F8=G8),"-",IF((F8/G8-1)*100>0,(F8/G8-1)*100,(F8/G8-1)*100)) -> 16.54548878 | I8: 12.433948 | J8: 10.668751 | K8: =IF(OR(AND(I8<=0,J8>=0),AND(I8>=0,J8<=0),I8=J8),"-",IF((I8/J8-1)*100>0,(I8/J8-1)*100,(I8/J8-1)*100)) -> 16.54548878
B9: Cativo Industrial | C9: 2.10313 | D9: 1.64911 | E9: 27.53121381 | F9: 5.814659 | G9: 5.409545 | H9: 7.488873833 | I9: 5.814659 | J9: 5.409545 | K9: 7.488873833
B10: Livre Industrial | C10: 2.500152 | D10: 1.628503 | E10: 53.52455599 | F10: 6.619289 | G10: 5.259206 | H10: 25.86099499 | I10: 6.619289 | J10: 5.259206 | K10: 25.86099499
B11: Comercial | C11: 5.948833 | D11: 5.541867 | E11: 7.343481899 | F11: 16.869084 | G11: 17.420042 | H11: -3.162782271 | I11: 16.869084 | J11: 17.420042 | K11: -3.162782271
B12: Cativo Comercial | C12: 5.648785 | D12: 5.35081 | E12: 5.568783044 | F12: 15.999718 | G12: 16.838347 | H12: -4.980471064 | I12: 15.999718 | J12: 16.838347 | K12: -4.980471064
B13: Livre Comercial | C13: 0.300048 | D13: 0.191057 | E13: 57.04632649 | F13: 0.869366 | G13: 0.581695 | H13: 49.45392345 | I13: 0.869366 | J13: 0.581695 | K13: 49.45392345
B14: Rural | C14: 0.436513 | D14: 0.404574 | E14: 7.894476659 | F14: 1.329351 | G14: 1.216661 | H14: 9.26223492 | I14: 1.329351 | J14: 1.216661 | K14: 9.26223492
B15: Cativo Rural | C15: 0.436513 | D15: 0.404574 | E15: 7.894476659 | F15: 1.329351 | G15: 1.216661 | H15: 9.26223492 | I15: 1.329351 | J15: 1.216661 | K15: 9.26223492
B16: Livre Rural | C16: 0 | D16: 0 | E16: - | F16: 0 | G16: 0 | H16: - | I16: 0 | J16: 0 | K16: -
B17: Outros | C17: 3.270351 | D17: 3.20616 | E17: 2.002114679 | F17: 9.546134 | G17: 9.630198 | H17: -0.8729207852 | I17: 9.546134 | J17: 9.630198 | K17: -0.8729207852
B18: Cativo Outros | C18: 2.71803 | D18: 2.827297 | E18: -3.864716017 | F18: 7.931487 | G18: 8.531935 | H18: -7.03765324 | I18: 7.931487 | J18: 8.531935 | K18: -7.03765324
B19: Livre Outros | C19: 0.552321 | D19: 0.378863 | E19: 45.78383215 | F19: 1.614647 | G19: 1.098263 | H19: 47.01824608 | I19: 1.614647 | J19: 1.098263 | K19: 47.01824608
B20: 1 Vendas de energia no mercado cativo | C20: 26.019692 | D20: 24.074905 | E20: 8.078067182 | F20: 74.40242 | G20: 73.307997 | H20: 1.492910794 | I20: 74.40242 | J20: 73.307997 | K20: 1.492910794
B21: 2 Energia associada aos consumidores livres (TUSD) | C21: 3.352521 | D21: 2.198423 | E21: 52.49663054 | F21: 9.103302 | G21: 6.939164 | H21: 31.18730153 | I21: 9.103302 | J21: 6.939164 | K21: 31.18730153
B22: 3 Mercado cativo + TUSD (1+2) | C22: 29.372213 | D22: 26.273328 | E22: 11.79479433 | F22: 83.505722 | G22: 80.247161 | H22: 4.060655803 | I22: 83.505722 | J22: 80.247161 | K22: 4.060655803
B23: ='Por Segmento'!B23 -> 4 Fornecimento não faturado | C23: -0.960592 | D23: 0.354051 | E23: - | F23: 0.370138 | G23: 0.171217 | H23: 116.1806363 | I23: 0.370138 | J23: 0.171217 | K23: 116.1806363
B24: 5 Mercado cativo + TUSD + fornecimento não faturado (3+4) | C24: 28.411621 | D24: 26.627379 | E24: 6.700779675 | F24: 83.87586 | G24: 80.418378 | H24: 4.299367988 | I24: 83.87586 | J24: 80.418378 | K24: 4.299367988

Sheet ESE
B2: Descrição Valores em GWh | C2: Mês | F2: Trimestre | I2: Acumulado
C3: ='Por Segmento'!C3 -> 2021-03-01 | D3: ='Por Segmento'!D3 -> 2020-03-01 | E3: ='Por Segmento'!E3 -> Var. % | F3: ='Por Segmento'!F3 -> 1T21 | G3: ='Por Segmento'!G3 -> 1T20 | H3: ='Por Segmento'!H3 -> Var. % | I3: ='Por Segmento'!I3 -> 3M21 | J3: ='Por Segmento'!J3 -> 3M20 | K3: ='Por Segmento'!K3 -> Var. %
B7: Residencial | C7: 107.122317 | D7: 106.964047 | E7: =IF(OR(AND(C7<=0,D7>=0),AND(C7>=0,D7<=0),C7=D7),"-",IF((C7/D7-1)*100>0,(C7/D7-1)*100,(C7/D7-1)*100)) -> 0.1479656057 | F7: 306.040274 | G7: 306.587277 | H7: =IF(OR(AND(F7<=0,G7>=0),AND(F7>=0,G7<=0),F7=G7),"-",IF((F7/G7-1)*100>0,(F7/G7-1)*100,(F7/G7-1)*100)) -> -0.1784167319 | I7: 306.040274 | J7: 306.587277 | K7: =IF(OR(AND(I7<=0,J7>=0),AND(I7>=0,J7<=0),I7=J7),"-",IF((I7/J7-1)*100>0,(I7/J7-1)*100,(I7/J7-1)*100)) -> -0.1784167319
B8: Industrial | C8: 40.73021451 | D8: 43.67851872 | E8: =IF(OR(AND(C8<=0,D8>=0),AND(C8>=0,D8<=0),C8=D8),"-",IF((C8/D8-1)*100>0,(C8/D8-1)*100,(C8/D8-1)*100)) -> -6.750009605 | F8: 112.8587333 | G8: 127.8633456 | H8: =IF(OR(AND(F8<=0,G8>=0),AND(F8>=0,G8<=0),F8=G8),"-",IF((F8/G8-1)*100>0,(F8/G8-1)*100,(F8/G8-1)*100)) -> -11.73488164 | I8: 112.8587333 | J8: 127.8633456 | K8: =IF(OR(AND(I8<=0,J8>=0),AND(I8>=0,J8<=0),I8=J8),"-",IF((I8/J8-1)*100>0,(I8/J8-1)*100,(I8/J8-1)*100)) -> -11.73488164
B9: Cativo Industrial | C9: 15.45584 | D9: 15.752025 | E9: -1.88029793 | F9: 43.183987 | G9: 46.789289 | H9: -7.705400268 | I9: 43.183987 | J9: 46.789289 | K9: -7.705400268
B10: Livre Industrial | C10: 25.27437451 | D10: 27.92649372 | E10: -9.49678551 | F10: 69.67474632 | G10: 81.07405659 | H10: -14.06036746 | I10: 69.67474632 | J10: 81.07405659 | K10: -14.06036746
B11: Comercial | C11: 49.81790568 | D11: 52.01457596 | E11: -4.223182127 | F11: 145.346539 | G11: 159.2853435 | H11: -8.750839346 | I11: 145.346539 | J11: 159.2853435 | K11: -8.750839346
B12: Cativo Comercial | C12: 38.248364 | D12: 42.233792 | E12: -9.436585756 | F12: 110.758484 | G12: 128.468831 | H12: -13.78571507 | I12: 110.758484 | J12: 128.468831 | K12: -13.78571507
B13: Livre Comercial | C13: 11.56954168 | D13: 9.780783956 | E13: 18.2884903 | F13: 34.58805496 | G13: 30.81651247 | H13: 12.23870642 | I13: 34.58805496 | J13: 30.81651247 | K13: 12.23870642
B14: Rural | C14: 15.085189 | D14: 11.572353 | E14: 30.35541691 | F14: 43.6404 | G14: 38.090917 | H14: 14.56904542 | I14: 43.6404 | J14: 38.090917 | K14: 14.56904542
B15: Cativo Rural | C15: 14.91805 | D15: 11.572353 | E15: 28.91112119 | F15: 43.137988 | G15: 38.090917 | H15: 13.25006431 | I15: 43.137988 | J15: 38.090917 | K15: 13.25006431
B16: Livre Rural | C16: 0.167139 | D16: 0 | E16: - | F16: 0.502412 | G16: 0 | H16: - | I16: 0.502412 | J16: 0 | K16: -
B17: Outros | C17: 48.101671 | D17: 47.553513 | E17: 1.152718202 | F17: 140.386488 | G17: 143.310706 | H17: -2.040474213 | I17: 140.386488 | J17: 143.310706 | K17: -2.040474213
B18: Cativo Outros | C18: 48.101671 | D18: 47.553513 | E18: 1.152718202 | F18: 140.386488 | G18: 143.310706 | H18: -2.040474213 | I18: 140.386488 | J18: 143.310706 | K18: -2.040474213
B19: Livre Outros | C19: 0 | D19: 0 | E19: - | F19: 0 | G19: 0 | H19: - | I19: 0 | J19: 0 | K19: -
B20: 1 Vendas de energia no mercado cativo | C20: 223.846242 | D20: 224.07573 | E20: -0.1024153754 | F20: 643.507221 | G20: 663.24702 | H20: -2.976236365 | I20: 643.507221 | J20: 663.24702 | K20: -2.976236365
B21: 2 Energia associada aos consumidores livres (TUSD) | C21: 37.01105519 | D21: 37.70727768 | E21: -1.846387559 | F21: 104.7652133 | G21: 111.8905691 | H21: -6.368146875 | I21: 104.7652133 | J21: 111.8905691 | K21: -6.368146875
B22: 3 Mercado cativo + TUSD (1+2) | C22: 260.8572972 | D22: 261.7830077 | E22: -0.3536174835 | F22: 748.2724343 | G22: 775.1375891 | H22: -3.465856276 | I22: 748.2724343 | J22: 775.1375891 | K22: -3.465856276
B23: ='Por Segmento'!B23 -> 4 Fornecimento não faturado | C23: 6.47161 | D23: 4.39401 | E23: 47.28255056 | F23: 5.749996 | G23: 5.240566 | H23: 9.72089656 | I23: 5.749996 | J23: 5.240566 | K23: 9.72089656
B24: 5 Mercado cativo + TUSD + fornecimento não faturado (3+4) | C24: 267.3289072 | D24: 266.1770177 | E24: 0.4327531828 | F24: 754.0224303 | G24: 780.3781551 | H24: -3.37730171 | I24: 754.0224303 | J24: 780.3781551 | K24: -3.37730171

Sheet EBO
B2: Descrição Valores em GWh | C2: Mês | F2: Trimestre | I2: Acumulado
C3: ='Por Segmento'!C3 -> 2021-03-01 | D3: ='Por Segmento'!D3 -> 2020-03-01 | E3: ='Por Segmento'!E3 -> Var. % | F3: ='Por Segmento'!F3 -> 1T21 | G3: ='Por Segmento'!G3 -> 1T20 | H3: ='Por Segmento'!H3 -> Var. % | I3: ='Por Segmento'!I3 -> 3M21 | J3: ='Por Segmento'!J3 -> 3M20 | K3: ='Por Segmento'!K3 -> Var. %
B7: Residencial | C7: 25.435937 | D7: 23.939459 | E7: =IF(OR(AND(C7<=0,D7>=0),AND(C7>=0,D7<=0),C7=D7),"-",IF((C7/D7-1)*100>0,(C7/D7-1)*100,(C7/D7-1)*100)) -> 6.251093644 | F7: 72.293804 | G7: 69.755223 | H7: =IF(OR(AND(F7<=0,G7>=0),AND(F7>=0,G7<=0),F7=G7),"-",IF((F7/G7-1)*100>0,(F7/G7-1)*100,(F7/G7-1)*100)) -> 3.639270138 | I7: 72.293804 | J7: 69.755223 | K7: =IF(OR(AND(I7<=0,J7>=0),AND(I7>=0,J7<=0),I7=J7),"-",IF((I7/J7-1)*100>0,(I7/J7-1)*100,(I7/J7-1)*100)) -> 3.639270138
B8: Industrial | C8: 13.054324 | D8: 10.80402916 | E8: =IF(OR(AND(C8<=0,D8>=0),AND(C8>=0,D8<=0),C8=D8),"-",IF((C8/D8-1)*100>0,(C8/D8-1)*100,(C8/D8-1)*100)) -> 20.82829293 | F8: 38.09852525 | G8: 34.45318448 | H8: =IF(OR(AND(F8<=0,G8>=0),AND(F8>=0,G8<=0),F8=G8),"-",IF((F8/G8-1)*100>0,(F8/G8-1)*100,(F8/G8-1)*100)) -> 10.58056266 | I8: 38.09852525 | J8: 34.45318448 | K8: =IF(OR(AND(I8<=0,J8>=0),AND(I8>=0,J8<=0),I8=J8),"-",IF((I8/J8-1)*100>0,(I8/J8-1)*100,(I8/J8-1)*100)) -> 10.58056266
B9: Cativo Industrial | C9: 3.883679 | D9: 3.915834 | E9: -0.8211532971 | F9: 10.85821 | G9: 12.559564 | H9: -13.54628234 | I9: 10.85821 | J9: 12.559564 | K9: -13.54628234
B10: Livre Industrial | C10: 9.170645 | D10: 6.888195159 | E10: 33.13567325 | F10: 27.24031525 | G10: 21.89362048 | H10: 24.42124533 | I10: 27.24031525 | J10: 21.89362048 | K10: 24.42124533
B11: Comercial | C11: 13.593672 | D11: 14.11610978 | E11: -3.70100396 | F11: 39.01002059 | G11: 43.14582698 | H11: -9.585646351 | I11: 39.01002059 | J11: 43.14582698 | K11: -9.585646351
B12: Cativo Comercial | C12: 10.632156 | D12: 11.451314 | E12: -7.153397418 | F12: 30.001458 | G12: 34.891788 | H12: -14.01570478 | I12: 30.001458 | J12: 34.891788 | K12: -14.01570478
B13: Livre Comercial | C13: 2.961516 | D13: 2.664795782 | E13: 11.13482016 | F13: 9.008562586 | G13: 8.254038975 | H13: 9.141265425 | I13: 9.008562586 | J13: 8.254038975 | K13: 9.141265425
B14: Rural | C14: 2.258048 | D14: 2.13991 | E14: 5.520699469 | F14: 6.59847 | G14: 6.530368 | H14: 1.042850878 | I14: 6.59847 | J14: 6.530368 | K14: 1.042850878
B15: Cativo Rural | C15: 2.258048 | D15: 2.13991 | E15: 5.520699469 | F15: 6.59847 | G15: 6.530368 | H15: 1.042850878 | I15: 6.59847 | J15: 6.530368 | K15: 1.042850878
B16: Livre Rural | C16: 0 | D16: 0 | E16: - | F16: 0 | G16: 0 | H16: - | I16: 0 | J16: 0 | K16: -
B17: Outros | C17: 6.631009 | D17: 6.724837 | E17: -1.395245714 | F17: 19.031115 | G17: 20.11661 | H17: -5.396013543 | I17: 19.031115 | J17: 20.11661 | K17: -5.396013543
B18: Cativo Outros | C18: 6.631009 | D18: 6.724837 | E18: -1.395245714 | F18: 19.031115 | G18: 20.11661 | H18: -5.396013543 | I18: 19.031115 | J18: 20.11661 | K18: -5.396013543
B19: Livre Outros | C19: 0 | D19: 0 | E19: - | F19: 0 | G19: 0 | H19: - | I19: 0 | J19: 0 | K19: -
B20: 1 Vendas de energia no mercado cativo | C20: 48.840829 | D20: 48.171354 | E20: 1.389778249 | F20: 138.783057 | G20: 143.853553 | H20: -3.524762437 | I20: 138.783057 | J20: 143.853553 | K20: -3.524762437
B21: 2 Energia associada aos consumidores livres (TUSD) | C21: 12.132161 | D21: 9.552990941 | E21: 26.99856071 | F21: 36.24887784 | G21: 30.14765946 | H21: 20.2377846 | I21: 36.24887784 | J21: 30.14765946 | K21: 20.2377846
B22: 3 Mercado cativo + TUSD (1+2) | C22: 60.97299 | D22: 57.72434494 | E22: 5.627859549 | F22: 175.0319348 | G22: 174.0012125 | H22: 0.5923650574 | I22: 175.0319348 | J22: 174.0012125 | K22: 0.5923650574
B23: ='Por Segmento'!B23 -> 4 Fornecimento não faturado | C23: -0.22021 | D23: 2.191262 | E23: - | F23: 1.861961 | G23: 0.856897 | H23: 117.2911097 | I23: 1.861961 | J23: 0.856897 | K23: 117.2911097
B24: 5 Mercado cativo + TUSD + fornecimento não faturado (3+4) | C24: 60.75278 | D24: 59.91560694 | E24: 1.39725374 | F24: 176.8938958 | G24: 174.8581095 | H24: 1.164250482 | I24: 176.8938958 | J24: 174.8581095 | K24: 1.164250482

Sheet EPB
B2: Descrição Valores em GWh | C2: Mês | F2: Trimestre | I2: Acumulado
C3: ='Por Segmento'!C3 -> 2021-03-01 | D3: ='Por Segmento'!D3 -> 2020-03-01 | E3: ='Por Segmento'!E3 -> Var. % | F3: ='Por Segmento'!F3 -> 1T21 | G3: ='Por Segmento'!G3 -> 1T20 | H3: ='Por Segmento'!H3 -> Var. % | I3: ='Por Segmento'!I3 -> 3M21 | J3: ='Por Segmento'!J3 -> 3M20 | K3: ='Por Segmento'!K3 -> Var. %
B7: Residencial | C7: 176.077491 | D7: 168.00476 | E7: =IF(OR(AND(C7<=0,D7>=0),AND(C7>=0,D7<=0),C7=D7),"-",IF((C7/D7-1)*100>0,(C7/D7-1)*100,(C7/D7-1)*100)) -> 4.80506088 | F7: 514.034824 | G7: 495.672892 | H7: =IF(OR(AND(F7<=0,G7>=0),AND(F7>=0,G7<=0),F7=G7),"-",IF((F7/G7-1)*100>0,(F7/G7-1)*100,(F7/G7-1)*100)) -> 3.704445471 | I7: 514.034824 | J7: 495.672892 | K7: =IF(OR(AND(I7<=0,J7>=0),AND(I7>=0,J7<=0),I7=J7),"-",IF((I7/J7-1)*100>0,(I7/J7-1)*100,(I7/J7-1)*100)) -> 3.704445471
B8: Industrial | C8: 61.816017 | D8: 59.44428188 | E8: =IF(OR(AND(C8<=0,D8>=0),AND(C8>=0,D8<=0),C8=D8),"-",IF((C8/D8-1)*100>0,(C8/D8-1)*100,(C8/D8-1)*100)) -> 3.989845691 | F8: 194.4607834 | G8: 193.3015596 | H8: =IF(OR(AND(F8<=0,G8>=0),AND(F8>=0,G8<=0),F8=G8),"-",IF((F8/G8-1)*100>0,(F8/G8-1)*100,(F8/G8-1)*100)) -> 0.5996970916 | I8: 194.4607834 | J8: 193.3015596 | K8: =IF(OR(AND(I8<=0,J8>=0),AND(I8>=0,J8<=0),I8=J8),"-",IF((I8/J8-1)*100>0,(I8/J8-1)*100,(I8/J8-1)*100)) -> 0.5996970916
B9: Cativo Industrial | C9: 12.056981 | D9: 14.065505 | E9: -14.2797859 | F9: 42.960402 | G9: 46.82881 | H9: -8.26074376 | I9: 42.960402 | J9: 46.82881 | K9: -8.26074376
B10: Livre Industrial | C10: 49.759036 | D10: 45.37877688 | E10: 9.652660164 | F10: 151.5003814 | G10: 146.4727496 | H10: 3.432469073 | I10: 151.5003814 | J10: 146.4727496 | K10: 3.432469073
B11: Comercial | C11: 62.469507 | D11: 69.51313845 | E11: -10.13280597 | F11: 193.7765688 | G11: 214.6508089 | H11: -9.724743278 | I11: 193.7765688 | J11: 214.6508089 | K11: -9.724743278
B12: Cativo Comercial | C12: 51.880483 | D12: 60.351767 | E12: -14.03651363 | F12: 160.906908 | G12: 185.409513 | H12: -13.21539796 | I12: 160.906908 | J12: 185.409513 | K12: -13.21539796
B13: Livre Comercial | C13: 10.589024 | D13: 9.161371445 | E13: 15.58339342 | F13: 32.86966081 | G13: 29.24129592 | H13: 12.4083587 | I13: 32.86966081 | J13: 29.24129592 | K13: 12.4083587
B14: Rural | C14: 25.703541 | D14: 25.60447 | E14: 0.3869285324 | F14: 91.791387 | G14: 85.339568 | H14: 7.560173025 | I14: 91.791387 | J14: 85.339568 | K14: 7.560173025
B15: Cativo Rural | C15: 25.703541 | D15: 25.60447 | E15: 0.3869285324 | F15: 91.791387 | G15: 85.339568 | H15: 7.560173025 | I15: 91.791387 | J15: 85.339568 | K15: 7.560173025
B16: Livre Rural | C16: 0 | D16: 0 | E16: - | F16: 0 | G16: 0 | H16: - | I16: 0 | J16: 0 | K16: -
B17: Outros | C17: 63.082632 | D17: 61.169579 | E17: 3.127458177 | F17: 182.379785 | G17: 187.39604 | H17: -2.676820172 | I17: 182.379785 | J17: 187.39604 | K17: -2.676820172
B18: Cativo Outros | C18: 63.082632 | D18: 61.169579 | E18: 3.127458177 | F18: 182.379785 | G18: 187.39604 | H18: -2.676820172 | I18: 182.379785 | J18: 187.39604 | K18: -2.676820172
B19: Livre Outros | C19: 0 | D19: 0 | E19: - | F19: 0 | G19: 0 | H19: - | I19: 0 | J19: 0 | K19: -
B20: 1 Vendas de energia no mercado cativo | C20: 328.801128 | D20: 329.196081 | E20: -0.1199750006 | F20: 992.073306 | G20: 1000.646823 | H20: -0.8567975037 | I20: 992.073306 | J20: 1000.646823 | K20: -0.8567975037
B21: 2 Energia associada aos consumidores livres (TUSD) | C21: 60.34806 | D21: 54.54014833 | E21: 10.648874 | F21: 184.3700423 | G21: 175.7140455 | H21: 4.926183728 | I21: 184.3700423 | J21: 175.7140455 | K21: 4.926183728
B22: 3 Mercado cativo + TUSD (1+2) | C22: 389.149188 | D22: 383.7362293 | E22: 1.410593595 | F22: 1176.443348 | G22: 1176.360869 | H22: 0.007011430013 | I22: 1176.443348 | J22: 1176.360869 | K22: 0.007011430013
B23: ='Por Segmento'!B23 -> 4 Fornecimento não faturado | C23: 3.275539 | D23: 9.058264 | E23: -63.83921908 | F23: 6.212201 | G23: 2.999383 | H23: 107.1159635 | I23: 6.212201 | J23: 2.999383 | K23: 107.1159635
B24: 5 Mercado cativo + TUSD + fornecimento não faturado (3+4) | C24: 392.424727 | D24: 392.7944933 | E24: -0.09413734975 | F24: 1182.655549 | G24: 1179.360252 | H24: 0.2794140056 | I24: 1182.655549 | J24: 1179.360252 | K24: 0.2794140056

Sheet EMT
B2: Descrição Valores em GWh | C2: Mês | F2: Trimestre | I2: Acumulado
C3: ='Por Segmento'!C3 -> 2021-03-01 | D3: ='Por Segmento'!D3 -> 2020-03-01 | E3: ='Por Segmento'!E3 -> Var. % | F3: ='Por Segmento'!F3 -> 1T21 | G3: ='Por Segmento'!G3 -> 1T20 | H3: ='Por Segmento'!H3 -> Var. % | I3: ='Por Segmento'!I3 -> 3M21 | J3: ='Por Segmento'!J3 -> 3M20 | K3: ='Por Segmento'!K3 -> Var. %
B7: Residencial | C7: 286.08016 | D7: 272.425964 | E7: =IF(OR(AND(C7<=0,D7>=0),AND(C7>=0,D7<=0),C7=D7),"-",IF((C7/D7-1)*100>0,(C7/D7-1)*100,(C7/D7-1)*100)) -> 5.012075868 | F7: 819.604966 | G7: 815.377971 | H7: =IF(OR(AND(F7<=0,G7>=0),AND(F7>=0,G7<=0),F7=G7),"-",IF((F7/G7-1)*100>0,(F7/G7-1)*100,(F7/G7-1)*100)) -> 0.5184092716 | I7: 819.604966 | J7: 815.377971 | K7: =IF(OR(AND(I7<=0,J7>=0),AND(I7>=0,J7<=0),I7=J7),"-",IF((I7/J7-1)*100>0,(I7/J7-1)*100,(I7/J7-1)*100)) -> 0.5184092716
B8: Industrial | C8: 175.2501444 | D8: 173.8323227 | E8: =IF(OR(AND(C8<=0,D8>=0),AND(C8>=0,D8<=0),C8=D8),"-",IF((C8/D8-1)*100>0,(C8/D8-1)*100,(C8/D8-1)*100)) -> 0.8156260909 | F8: 495.2461422 | G8: 487.4202203 | H8: =IF(OR(AND(F8<=0,G8>=0),AND(F8>=0,G8<=0),F8=G8),"-",IF((F8/G8-1)*100>0,(F8/G8-1)*100,(F8/G8-1)*100)) -> 1.605580058 | I8: 495.2461422 | J8: 487.4202203 | K8: =IF(OR(AND(I8<=0,J8>=0),AND(I8>=0,J8<=0),I8=J8),"-",IF((I8/J8-1)*100>0,(I8/J8-1)*100,(I8/J8-1)*100)) -> 1.605580058
B9: Cativo Industrial | C9: 47.681226 | D9: 50.093993 | E9: -4.816479692 | F9: 134.07498 | G9: 143.57784 | H9: -6.618611897 | I9: 134.07498 | J9: 143.57784 | K9: -6.618611897
B10: Livre Industrial | C10: 127.5689184 | D10: 123.7383297 | E10: 3.095717219 | F10: 361.1711622 | G10: 343.8423803 | H10: 5.039745781 | I10: 361.1711622 | J10: 343.8423803 | K10: 5.039745781
B11: Comercial | C11: 162.7086708 | D11: 160.388206 | E11: 1.446780197 | F11: 445.7226607 | G11: 474.052657 | H11: -5.976128569 | I11: 445.7226607 | J11: 474.052657 | K11: -5.976128569
B12: Cativo Comercial | C12: 133.78977 | D12: 140.874248 | E12: -5.028937581 | F12: 367.333989 | G12: 414.409655 | H12: -11.35969334 | I12: 367.333989 | J12: 414.409655 | K12: -11.35969334
B13: Livre Comercial | C13: 28.9189008 | D13: 19.513958 | E13: 48.19597748 | F13: 78.38867171 | G13: 59.64300198 | H13: 31.42978909 | I13: 78.38867171 | J13: 59.64300198 | K13: 31.42978909
B14: Rural | C14: 112.2810176 | D14: 103.6463849 | E14: 8.330857519 | F14: 312.3249854 | G14: 305.179015 | H14: 2.341566758 | I14: 312.3249854 | J14: 305.179015 | K14: 2.341566758
B15: Cativo Rural | C15: 106.69583 | D15: 98.937642 | E15: 7.841492725 | F15: 293.239793 | G15: 287.036301 | H15: 2.16122211 | I15: 293.239793 | J15: 287.036301 | K15: 2.16122211
B16: Livre Rural | C16: 5.585187601 | D16: 4.708742947 | E16: 18.61313442 | F16: 19.08519239 | G16: 18.14271402 | H16: 5.194803632 | I16: 19.08519239 | J16: 18.14271402 | K16: 5.194803632
B17: Outros | C17: 77.42659257 | D17: 82.70937533 | E17: -6.387163176 | F17: 255.7357126 | G17: 238.6425223 | H17: 7.162675817 | I17: 255.7357126 | J17: 238.6425223 | K17: 7.162675817
B18: Cativo Outros | C18: 73.34472 | D18: 78.816996 | E18: -6.943015184 | F18: 244.087345 | G18: 227.583487 | H18: 7.251781848 | I18: 244.087345 | J18: 227.583487 | K18: 7.251781848
B19: Livre Outros | C19: 4.081872569 | D19: 3.892379333 | E19: 4.868313692 | F19: 11.64836757 | G19: 11.05903533 | H19: 5.328966029 | I19: 11.64836757 | J19: 11.05903533 | K19: 5.328966029
B20: 1 Vendas de energia no mercado cativo | C20: 647.591706 | D20: 641.148843 | E20: 1.004893492 | F20: 1858.341073 | G20: 1887.985254 | H20: -1.570148969 | I20: 1858.341073 | J20: 1887.985254 | K20: -1.570148969
B21: 2 Energia associada aos consumidores livres (TUSD) | C21: 166.1548794 | D21: 151.8534099 | E21: 9.417944238 | F21: 470.2933939 | G21: 432.6871317 | H21: 8.691329008 | I21: 470.2933939 | J21: 432.6871317 | K21: 8.691329008
B22: 3 Mercado cativo + TUSD (1+2) | C22: 813.7465854 | D22: 793.0022529 | E22: 2.615923523 | F22: 2328.634467 | G22: 2320.672386 | H22: 0.3430937188 | I22: 2328.634467 | J22: 2320.672386 | K22: 0.3430937188
B23: ='Por Segmento'!B23 -> 4 Fornecimento não faturado | C23: -2.285661 | D23: 13.4077 | E23: - | F23: -53.236122 | G23: 7.690093 | H23: - | I23: -53.236122 | J23: 7.690093 | K23: -
B24: 5 Mercado cativo + TUSD + fornecimento não faturado (3+4) | C24: 811.4609244 | D24: 806.4099529 | E24: 0.6263528188 | F24: 2275.398345 | G24: 2328.362479 | H24: -2.274737473 | I24: 2275.398345 | J24: 2328.362479 | K24: -2.274737473

Sheet EMS
B2: Descrição Valores em GWh | C2: Mês | F2: Trimestre | I2: Acumulado
C3: ='Por Segmento'!C3 -> 2021-03-01 | D3: ='Por Segmento'!D3 -> 2020-03-01 | E3: ='Por Segmento'!E3 -> Var. % | F3: ='Por Segmento'!F3 -> 1T21 | G3: ='Por Segmento'!G3 -> 1T20 | H3: ='Por Segmento'!H3 -> Var. % | I3: ='Por Segmento'!I3 -> 3M21 | J3: ='Por Segmento'!J3 -> 3M20 | K3: ='Por Segmento'!K3 -> Var. %
B7: Residencial | C7: 188.92956 | D7: 189.427093 | E7: =IF(OR(AND(C7<=0,D7>=0),AND(C7>=0,D7<=0),C7=D7),"-",IF((C7/D7-1)*100>0,(C7/D7-1)*100,(C7/D7-1)*100)) -> -0.2626514466 | F7: 551.425734 | G7: 564.367043 | H7: =IF(OR(AND(F7<=0,G7>=0),AND(F7>=0,G7<=0),F7=G7),"-",IF((F7/G7-1)*100>0,(F7/G7-1)*100,(F7/G7-1)*100)) -> -2.293066039 | I7: 551.425734 | J7: 564.367043 | K7: =IF(OR(AND(I7<=0,J7>=0),AND(I7>=0,J7<=0),I7=J7),"-",IF((I7/J7-1)*100>0,(I7/J7-1)*100,(I7/J7-1)*100)) -> -2.293066039
B8: Industrial | C8: 123.5079016 | D8: 109.9391436 | E8: =IF(OR(AND(C8<=0,D8>=0),AND(C8>=0,D8<=0),C8=D8),"-",IF((C8/D8-1)*100>0,(C8/D8-1)*100,(C8/D8-1)*100)) -> 12.3420627 | F8: 348.2561906 | G8: 319.1768836 | H8: =IF(OR(AND(F8<=0,G8>=0),AND(F8>=0,G8<=0),F8=G8),"-",IF((F8/G8-1)*100>0,(F8/G8-1)*100,(F8/G8-1)*100)) -> 9.110718361 | I8: 348.2561906 | J8: 319.1768836 | K8: =IF(OR(AND(I8<=0,J8>=0),AND(I8>=0,J8<=0),I8=J8),"-",IF((I8/J8-1)*100>0,(I8/J8-1)*100,(I8/J8-1)*100)) -> 9.110718361
B9: Cativo Industrial | C9: 23.109724 | D9: 23.67198 | E9: -2.375196329 | F9: 65.947061 | G9: 69.121793 | H9: -4.592953774 | I9: 65.947061 | J9: 69.121793 | K9: -4.592953774
B10: Livre Industrial | C10: 100.3981776 | D10: 86.26716356 | E10: 16.3805247 | F10: 282.3091296 | G10: 250.0550906 | H10: 12.89877317 | I10: 282.3091296 | J10: 250.0550906 | K10: 12.89877317
B11: Comercial | C11: 98.30255341 | D11: 108.301088 | E11: -9.232164452 | F11: 282.2025762 | G11: 314.1732294 | H11: -10.17612269 | I11: 282.2025762 | J11: 314.1732294 | K11: -10.17612269
B12: Cativo Comercial | C12: 79.246525 | D12: 94.470691 | E12: -16.11522668 | F12: 235.33062 | G12: 274.251384 | H12: -14.19163814 | I12: 235.33062 | J12: 274.251384 | K12: -14.19163814
B13: Livre Comercial | C13: 19.05602841 | D13: 13.83039695 | E13: 37.78366937 | F13: 46.87195616 | G13: 39.92184545 | H13: 17.40929217 | I13: 46.87195616 | J13: 39.92184545 | K13: 17.40929217
B14: Rural | C14: 50.1565457 | D14: 54.23450157 | E14: -7.519117442 | F14: 150.4430369 | G14: 153.1712675 | H14: -1.7811634 | I14: 150.4430369 | J14: 153.1712675 | K14: -1.7811634
B15: Cativo Rural | C15: 49.013428 | D15: 53.429713 | E15: -8.265597459 | F15: 147.678581 | G15: 150.996262 | H15: -2.197194127 | I15: 147.678581 | J15: 150.996262 | K15: -2.197194127
B16: Livre Rural | C16: 1.143117699 | D16: 0.804788566 | E16: 42.03950544 | F16: 2.764455926 | G16: 2.175005481 | H16: 27.10110159 | I16: 2.764455926 | J16: 2.175005481 | K16: 27.10110159
B17: Outros | C17: 54.3064036 | D17: 59.98202181 | E17: -9.462198902 | F17: 164.0636594 | G17: 173.2304098 | H17: -5.291651979 | I17: 164.0636594 | J17: 173.2304098 | K17: -5.291651979
B18: Cativo Outros | C18: 46.815242 | D18: 55.132905 | E18: -15.08656763 | F18: 142.8156 | G18: 159.446732 | H18: -10.43052547 | I18: 142.8156 | J18: 159.446732 | K18: -10.43052547
B19: Livre Outros | C19: 7.491161602 | D19: 4.849116811 | E19: 54.48507211 | F19: 21.24805935 | G19: 13.78367776 | H19: 54.1537732 | I19: 21.24805935 | J19: 13.78367776 | K19: 54.1537732
B20: 1 Vendas de energia no mercado cativo | C20: 387.114479 | D20: 416.132382 | E20: -6.973238386 | F20: 1143.197596 | G20: 1218.183214 | H20: -6.155528753 | I20: 1143.197596 | J20: 1218.183214 | K20: -6.155528753
B21: 2 Energia associada aos consumidores livres (TUSD) | C21: 128.0884853 | D21: 105.7514659 | E21: 21.12218419 | F21: 353.193601 | G21: 305.9356193 | H21: 15.44703484 | I21: 353.193601 | J21: 305.9356193 | K21: 15.44703484
B22: 3 Mercado cativo + TUSD (1+2) | C22: 515.2029643 | D22: 521.8838479 | E22: -1.280147606 | F22: 1496.391197 | G22: 1524.118833 | H22: -1.819256852 | I22: 1496.391197 | J22: 1524.118833 | K22: -1.819256852
B23: ='Por Segmento'!B23 -> 4 Fornecimento não faturado | C23: 22.439652 | D23: 15.141443 | E23: 48.20022108 | F23: -11.377657 | G23: 12.086154 | H23: - | I23: -11.377657 | J23: 12.086154 | K23: -
B24: 5 Mercado cativo + TUSD + fornecimento não faturado (3+4) | C24: 537.6426163 | D24: 537.0252909 | E24: 0.1149527638 | F24: 1485.01354 | G24: 1536.204987 | H24: -3.3323318 | I24: 1485.01354 | J24: 1536.204987 | K24: -3.3323318

Sheet ETO
B2: Descrição Valores em GWh | C2: Mês | F2: Trimestre | I2: Acumulado
C3: ='Por Segmento'!C3 -> 2021-03-01 | D3: ='Por Segmento'!D3 -> 2020-03-01 | E3: ='Por Segmento'!E3 -> Var. % | F3: ='Por Segmento'!F3 -> 1T21 | G3: ='Por Segmento'!G3 -> 1T20 | H3: ='Por Segmento'!H3 -> Var. % | I3: ='Por Segmento'!I3 -> 3M21 | J3: ='Por Segmento'!J3 -> 3M20 | K3: ='Por Segmento'!K3 -> Var. %
B7: Residencial | C7: 85.72164 | D7: 85.05379 | E7: =IF(OR(AND(C7<=0,D7>=0),AND(C7>=0,D7<=0),C7=D7),"-",IF((C7/D7-1)*100>0,(C7/D7-1)*100,(C7/D7-1)*100)) -> 0.7852089836 | F7: 258.101806 | G7: 253.981207 | H7: =IF(OR(AND(F7<=0,G7>=0),AND(F7>=0,G7<=0),F7=G7),"-",IF((F7/G7-1)*100>0,(F7/G7-1)*100,(F7/G7-1)*100)) -> 1.62240311 | I7: 258.101806 | J7: 253.981207 | K7: =IF(OR(AND(I7<=0,J7>=0),AND(I7>=0,J7<=0),I7=J7),"-",IF((I7/J7-1)*100>0,(I7/J7-1)*100,(I7/J7-1)*100)) -> 1.62240311
B8: Industrial | C8: 26.20894847 | D8: 24.33842135 | E8: =IF(OR(AND(C8<=0,D8>=0),AND(C8>=0,D8<=0),C8=D8),"-",IF((C8/D8-1)*100>0,(C8/D8-1)*100,(C8/D8-1)*100)) -> 7.685490727 | F8: 75.21863821 | G8: 69.57874533 | H8: =IF(OR(AND(F8<=0,G8>=0),AND(F8>=0,G8<=0),F8=G8),"-",IF((F8/G8-1)*100>0,(F8/G8-1)*100,(F8/G8-1)*100)) -> 8.105769723 | I8: 75.21863821 | J8: 69.57874533 | K8: =IF(OR(AND(I8<=0,J8>=0),AND(I8>=0,J8<=0),I8=J8),"-",IF((I8/J8-1)*100>0,(I8/J8-1)*100,(I8/J8-1)*100)) -> 8.105769723
B9: Cativo Industrial | C9: 4.921304 | D9: 8.690276 | E9: -43.36999193 | F9: 16.652042 | G9: 23.295366 | H9: -28.51779191 | I9: 16.652042 | J9: 23.295366 | K9: -28.51779191
B10: Livre Industrial | C10: 21.28764447 | D10: 15.64814535 | E10: 36.03940908 | F10: 58.56659621 | G10: 46.28337933 | H10: 26.53915304 | I10: 58.56659621 | J10: 46.28337933 | K10: 26.53915304
B11: Comercial | C11: 30.89183215 | D11: 35.22498881 | E11: -12.30137131 | F11: 95.49637572 | G11: 104.196031 | H11: -8.34931545 | I11: 95.49637572 | J11: 104.196031 | K11: -8.34931545
B12: Cativo Comercial | C12: 25.927231 | D12: 32.102783 | E12: -19.23681196 | F12: 81.718514 | G12: 94.326301 | H12: -13.36614164 | I12: 81.718514 | J12: 94.326301 | K12: -13.36614164
B13: Livre Comercial | C13: 4.964601147 | D13: 3.122205815 | E13: 59.00941325 | F13: 13.77786172 | G13: 9.869730041 | H13: 39.59714871 | I13: 13.77786172 | J13: 9.869730041 | K13: 39.59714871
B14: Rural | C14: 16.01385523 | D14: 18.54879247 | E14: -13.66631949 | F14: 57.89446372 | G14: 56.42798246 | H14: 2.598854684 | I14: 57.89446372 | J14: 56.42798246 | K14: 2.598854684
B15: Cativo Rural | C15: 15.475447 | D15: 18.129414 | E15: -14.6390115 | F15: 56.404581 | G15: 55.194891 | H15: 2.19167024 | I15: 56.404581 | J15: 55.194891 | K15: 2.19167024
B16: Livre Rural | C16: 0.53840823 | D16: 0.419378471 | E16: 28.38241999 | F16: 1.489882725 | G16: 1.23309146 | H16: 20.82499744 | I16: 1.489882725 | J16: 1.23309146 | K16: 20.82499744
B17: Outros | C17: 24.83624952 | D17: 28.925657 | E17: -14.13764768 | F17: 83.00826046 | G17: 84.607776 | H17: -1.890506545 | I17: 83.00826046 | J17: 84.607776 | K17: -1.890506545
B18: Cativo Outros | C18: 22.51817 | D18: 28.925657 | E18: -22.15156945 | F18: 76.765098 | G18: 84.607776 | H18: -9.269452964 | I18: 76.765098 | J18: 84.607776 | K18: -9.269452964
B19: Livre Outros | C19: 2.318079523 | D19: 0 | E19: - | F19: 6.243162457 | G19: 0 | H19: - | I19: 6.243162457 | J19: 0 | K19: -
B20: 1 Vendas de energia no mercado cativo | C20: 154.563792 | D20: 172.90192 | E20: -10.60608697 | F20: 489.642041 | G20: 511.405541 | H20: -4.255624598 | I20: 489.642041 | J20: 511.405541 | K20: -4.255624598
B21: 2 Energia associada aos consumidores livres (TUSD) | C21: 29.10873337 | D21: 19.18972964 | E21: 51.68912704 | F21: 80.07750311 | G21: 57.38620084 | H21: 39.54139139 | I21: 80.07750311 | J21: 57.38620084 | K21: 39.54139139
B22: 3 Mercado cativo + TUSD (1+2) | C22: 183.6725254 | D22: 192.0916496 | E22: -4.382868431 | F22: 569.7195441 | G22: 568.7917418 | H22: 0.1631180991 | I22: 569.7195441 | J22: 568.7917418 | K22: 0.1631180991
B23: ='Por Segmento'!B23 -> 4 Fornecimento não faturado | C23: 2.380551 | D23: 5.516534 | E23: -56.84698037 | F23: -8.559737 | G23: 0.899341 | H23: - | I23: -8.559737 | J23: 0.899341 | K23: -
B24: 5 Mercado cativo + TUSD + fornecimento não faturado (3+4) | C24: 186.0530764 | D24: 197.6081836 | E24: -5.847484177 | F24: 561.1598071 | G24: 569.6910828 | H24: -1.497526639 | I24: 561.1598071 | J24: 569.6910828 | K24: -1.497526639

Sheet ESS
B2: Descrição Valores em GWh | C2: Mês | F2: Trimestre | I2: Acumulado
C3: ='Por Segmento'!C3 -> 2021-03-01 | D3: ='Por Segmento'!D3 -> 2020-03-01 | E3: ='Por Segmento'!E3 -> Var. % | F3: ='Por Segmento'!F3 -> 1T21 | G3: ='Por Segmento'!G3 -> 1T20 | H3: ='Por Segmento'!H3 -> Var. % | I3: ='Por Segmento'!I3 -> 3M21 | J3: ='Por Segmento'!J3 -> 3M20 | K3: ='Por Segmento'!K3 -> Var. %
B7: Residencial | C7: 145.178049 | D7: 131.135461 | E7: =IF(OR(AND(C7<=0,D7>=0),AND(C7>=0,D7<=0),C7=D7),"-",IF((C7/D7-1)*100>0,(C7/D7-1)*100,(C7/D7-1)*100)) -> 10.7084597 | F7: 417.903704 | G7: 401.252393 | H7: =IF(OR(AND(F7<=0,G7>=0),AND(F7>=0,G7<=0),F7=G7),"-",IF((F7/G7-1)*100>0,(F7/G7-1)*100,(F7/G7-1)*100)) -> 4.14983469 | I7: 417.903704 | J7: 401.252393 | K7: =IF(OR(AND(I7<=0,J7>=0),AND(I7>=0,J7<=0),I7=J7),"-",IF((I7/J7-1)*100>0,(I7/J7-1)*100,(I7/J7-1)*100)) -> 4.14983469
B8: Industrial | C8: 122.605714 | D8: 115.8036031 | E8: =IF(OR(AND(C8<=0,D8>=0),AND(C8>=0,D8<=0),C8=D8),"-",IF((C8/D8-1)*100>0,(C8/D8-1)*100,(C8/D8-1)*100)) -> 5.873833547 | F8: 350.4089143 | G8: 342.6603417 | H8: =IF(OR(AND(F8<=0,G8>=0),AND(F8>=0,G8<=0),F8=G8),"-",IF((F8/G8-1)*100>0,(F8/G8-1)*100,(F8/G8-1)*100)) -> 2.261298313 | I8: 350.4089143 | J8: 342.6603417 | K8: =IF(OR(AND(I8<=0,J8>=0),AND(I8>=0,J8<=0),I8=J8),"-",IF((I8/J8-1)*100>0,(I8/J8-1)*100,(I8/J8-1)*100)) -> 2.261298313
B9: Cativo Industrial | C9: 25.305119 | D9: 32.898176 | E9: -23.08048021 | F9: 69.431182 | G9: 98.640365 | H9: -29.61179533 | I9: 69.431182 | J9: 98.640365 | K9: -29.61179533
B10: Livre Industrial | C10: 97.30059501 | D10: 82.90542712 | E10: 17.36336014 | F10: 280.9777323 | G10: 244.0199767 | H10: 15.14538114 | I10: 280.9777323 | J10: 244.0199767 | K10: 15.14538114
B11: Comercial | C11: 73.09934829 | D11: 72.05409929 | E11: 1.45064474 | F11: 207.5743089 | G11: 219.8221624 | H11: -5.571710073 | I11: 207.5743089 | J11: 219.8221624 | K11: -5.571710073
B12: Cativo Comercial | C12: 61.314935 | D12: 62.851926 | E12: -2.445415913 | F12: 173.845597 | G12: 192.573624 | H12: -9.7251257 | I12: 173.845597 | J12: 192.573624 | K12: -9.7251257
B13: Livre Comercial | C13: 11.78441329 | D13: 9.202173293 | E13: 28.06119727 | F13: 33.72871187 | G13: 27.24853844 | H13: 23.7817285 | I13: 33.72871187 | J13: 27.24853844 | K13: 23.7817285
B14: Rural | C14: 29.137482 | D14: 27.979377 | E14: 4.139137909 | F14: 81.622485 | G14: 80.559859 | H14: 1.319051465 | I14: 81.622485 | J14: 80.559859 | K14: 1.319051465
B15: Cativo Rural | C15: 29.137482 | D15: 27.979377 | E15: 4.139137909 | F15: 81.622485 | G15: 80.559859 | H15: 1.319051465 | I15: 81.622485 | J15: 80.559859 | K15: 1.319051465
B16: Livre Rural | C16: 0 | D16: 0 | E16: - | F16: 0 | G16: 0 | H16: - | I16: 0 | J16: 0 | K16: -
B17: Outros | C17: 37.25861019 | D17: 40.8006183 | E17: -8.681260869 | F17: 124.6957211 | G17: 120.658435 | H17: 3.346045452 | I17: 124.6957211 | J17: 120.658435 | K17: 3.346045452
B18: Cativo Outros | C18: 35.104379 | D18: 40.052918 | E18: -12.35500245 | F18: 118.360801 | G18: 118.526745 | H18: -0.1400055321 | I18: 118.360801 | J18: 118.526745 | K18: -0.1400055321
B19: Livre Outros | C19: 2.154231193 | D19: 0.747700304 | E19: 188.1142593 | F19: 6.334920081 | G19: 2.131690004 | H19: 197.1782984 | I19: 6.334920081 | J19: 2.131690004 | K19: 197.1782984
B20: 1 Vendas de energia no mercado cativo | C20: 296.039964 | D20: 294.917858 | E20: 0.3804808592 | F20: 861.163769 | G20: 891.552986 | H20: -3.408571053 | I20: 861.163769 | J20: 891.552986 | K20: -3.408571053
B21: 2 Energia associada aos consumidores livres (TUSD) | C21: 111.2392395 | D21: 92.85530071 | E21: 19.79848069 | F21: 321.0413642 | G21: 273.4002052 | H21: 17.42542915 | I21: 321.0413642 | J21: 273.4002052 | K21: 17.42542915
B22: 3 Mercado cativo + TUSD (1+2) | C22: 407.2792035 | D22: 387.7731587 | E22: 5.030272039 | F22: 1182.205133 | G22: 1164.953191 | H22: 1.480912896 | I22: 1182.205133 | J22: 1164.953191 | K22: 1.480912896
B23: ='Por Segmento'!B23 -> 4 Fornecimento não faturado | C23: -7.0301658 | D23: 5.262138 | E23: - | F23: -9.620935 | G23: 1.275714 | H23: - | I23: -9.620935 | J23: 1.275714 | K23: -
B24: 5 Mercado cativo + TUSD + fornecimento não faturado (3+4) | C24: 400.2490377 | D24: 393.0352967 | E24: 1.835392658 | F24: 1172.584198 | G24: 1166.228905 | H24: 0.5449438791 | I24: 1172.584198 | J24: 1166.228905 | K24: 0.5449438791

Sheet EAC
B2: Descrição Valores em GWh | C2: Mês | F2: Trimestre | I2: Acumulado
C3: ='Por Segmento'!C3 -> 2021-03-01 | D3: ='Por Segmento'!D3 -> 2020-03-01 | E3: ='Por Segmento'!E3 -> Var. % | F3: ='Por Segmento'!F3 -> 1T21 | G3: ='Por Segmento'!G3 -> 1T20 | H3: ='Por Segmento'!H3 -> Var. % | I3: ='Por Segmento'!I3 -> 3M21 | J3: ='Por Segmento'!J3 -> 3M20 | K3: ='Por Segmento'!K3 -> Var. %
B7: Residencial | C7: 45.393743 | D7: 45.461148 | E7: =IF(OR(AND(C7<=0,D7>=0),AND(C7>=0,D7<=0),C7=D7),"-",IF((C7/D7-1)*100>0,(C7/D7-1)*100,(C7/D7-1)*100)) -> -0.148269463 | F7: 138.058521 | G7: 132.439498 | H7: =IF(OR(AND(F7<=0,G7>=0),AND(F7>=0,G7<=0),F7=G7),"-",IF((F7/G7-1)*100>0,(F7/G7-1)*100,(F7/G7-1)*100)) -> 4.242709377 | I7: 138.058521 | J7: 132.439498 | K7: =IF(OR(AND(I7<=0,J7>=0),AND(I7>=0,J7<=0),I7=J7),"-",IF((I7/J7-1)*100>0,(I7/J7-1)*100,(I7/J7-1)*100)) -> 4.242709377
B8: Industrial | C8: 2.752972556 | D8: 3.347679275 | E8: =IF(OR(AND(C8<=0,D8>=0),AND(C8>=0,D8<=0),C8=D8),"-",IF((C8/D8-1)*100>0,(C8/D8-1)*100,(C8/D8-1)*100)) -> -17.76474597 | F8: 9.28239449 | G8: 9.726504275 | H8: =IF(OR(AND(F8<=0,G8>=0),AND(F8>=0,G8<=0),F8=G8),"-",IF((F8/G8-1)*100>0,(F8/G8-1)*100,(F8/G8-1)*100)) -> -4.565975323 | I8: 9.28239449 | J8: 9.726504275 | K8: =IF(OR(AND(I8<=0,J8>=0),AND(I8>=0,J8<=0),I8=J8),"-",IF((I8/J8-1)*100>0,(I8/J8-1)*100,(I8/J8-1)*100)) -> -4.565975323
B9: Cativo Industrial | C9: 2.083835 | D9: 2.811013 | E9: -25.86889495 | F9: 7.376946 | G9: 9.189838 | H9: -19.72713774 | I9: 7.376946 | J9: 9.189838 | K9: -19.72713774
B10: Livre Industrial | C10: 0.669137556 | D10: 0.536666275 | E10: 24.68410764 | F10: 1.90544849 | G10: 0.536666275 | H10: 255.0527728 | I10: 1.90544849 | J10: 0.536666275 | K10: 255.0527728
B11: Comercial | C11: 18.00160271 | D11: 21.9696585 | E11: -18.06152697 | F11: 58.8870838 | G11: 66.79574892 | H11: -11.84007253 | I11: 58.8870838 | J11: 66.79574892 | K11: -11.84007253
B12: Cativo Comercial | C12: 14.470908 | D12: 18.835898 | E12: -23.17378232 | F12: 48.72874 | G12: 57.015358 | H12: -14.53401029 | I12: 48.72874 | J12: 57.015358 | K12: -14.53401029
B13: Livre Comercial | C13: 3.530694709 | D13: 3.133760504 | E13: 12.6663861 | F13: 10.1583438 | G13: 9.780390915 | H13: 3.864394443 | I13: 10.1583438 | J13: 9.780390915 | K13: 3.864394443
B14: Rural | C14: 4.707296 | D14: 4.724197 | E14: -0.3577539209 | F14: 14.341507 | G14: 13.764709 | H14: 4.190411871 | I14: 14.341507 | J14: 13.764709 | K14: 4.190411871
B15: Cativo Rural | C15: 4.707296 | D15: 4.724197 | E15: -0.3577539209 | F15: 14.341507 | G15: 13.764709 | H15: 4.190411871 | I15: 14.341507 | J15: 13.764709 | K15: 4.190411871
B16: Livre Rural | C16: 0 | D16: 0 | E16: - | F16: 0 | G16: 0 | H16: - | I16: 0 | J16: 0 | K16: -
B17: Outros | C17: 13.926932 | D17: 18.98498 | E17: -26.64236676 | F17: 43.806927 | G17: 55.862724 | H17: -21.58111194 | I17: 43.806927 | J17: 55.862724 | K17: -21.58111194
B18: Cativo Outros | C18: 13.926932 | D18: 18.98498 | E18: -26.64236676 | F18: 43.806927 | G18: 55.862724 | H18: -21.58111194 | I18: 43.806927 | J18: 55.862724 | K18: -21.58111194
B19: Livre Outros | C19: 0 | D19: 0 | E19: - | F19: 0 | G19: 0 | H19: - | I19: 0 | J19: 0 | K19: -
B20: 1 Vendas de energia no mercado cativo | C20: 80.582714 | D20: 90.817236 | E20: -11.26936081 | F20: 252.312641 | G20: 268.272127 | H20: -5.948991488 | I20: 252.312641 | J20: 268.272127 | K20: -5.948991488
B21: 2 Energia associada aos consumidores livres (TUSD) | C21: 4.199832265 | D21: 3.670426779 | E21: 14.42354031 | F21: 12.06379229 | G21: 10.31705719 | H21: 16.93055554 | I21: 12.06379229 | J21: 10.31705719 | K21: 16.93055554
B22: 3 Mercado cativo + TUSD (1+2) | C22: 84.78254626 | D22: 94.48766278 | E22: -10.27130551 | F22: 264.3764333 | G22: 278.5891842 | H22: -5.101687972 | I22: 264.3764333 | J22: 278.5891842 | K22: -5.101687972
B23: ='Por Segmento'!B23 -> 4 Fornecimento não faturado | C23: 4.401597 | D23: -1.046602 | E23: - | F23: -8.049824 | G23: -1.245016 | H23: 546.5638996 | I23: -8.049824 | J23: -1.245016 | K23: 546.5638996
B24: 5 Mercado cativo + TUSD + fornecimento não faturado (3+4) | C24: 89.18414326 | D24: 93.44106078 | E24: -4.55572473 | F24: 256.3266093 | G24: 277.3441682 | H24: -7.578150656 | I24: 256.3266093 | J24: 277.3441682 | K24: -7.578150656

Sheet ERO
B2: Descrição Valores em GWh | C2: Mês | F2: Trimestre | I2: Acumulado
C3: ='Por Segmento'!C3 -> 2021-03-01 | D3: ='Por Segmento'!D3 -> 2020-03-01 | E3: ='Por Segmento'!E3 -> Var. % | F3: ='Por Segmento'!F3 -> 1T21 | G3: ='Por Segmento'!G3 -> 1T20 | H3: ='Por Segmento'!H3 -> Var. % | I3: ='Por Segmento'!I3 -> 3M21 | J3: ='Por Segmento'!J3 -> 3M20 | K3: ='Por Segmento'!K3 -> Var. %
B7: Residencial | C7: 113.114331 | D7: 111.069225 | E7: =IF(OR(AND(C7<=0,D7>=0),AND(C7>=0,D7<=0),C7=D7),"-",IF((C7/D7-1)*100>0,(C7/D7-1)*100,(C7/D7-1)*100)) -> 1.84128952 | F7: 323.940367 | G7: 334.453944 | H7: =IF(OR(AND(F7<=0,G7>=0),AND(F7>=0,G7<=0),F7=G7),"-",IF((F7/G7-1)*100>0,(F7/G7-1)*100,(F7/G7-1)*100)) -> -3.143505164 | I7: 323.940367 | J7: 334.453944 | K7: =IF(OR(AND(I7<=0,J7>=0),AND(I7>=0,J7<=0),I7=J7),"-",IF((I7/J7-1)*100>0,(I7/J7-1)*100,(I7/J7-1)*100)) -> -3.143505164
B8: Industrial | C8: 30.09026134 | D8: 38.03206017 | E8: =IF(OR(AND(C8<=0,D8>=0),AND(C8>=0,D8<=0),C8=D8),"-",IF((C8/D8-1)*100>0,(C8/D8-1)*100,(C8/D8-1)*100)) -> -20.88185281 | F8: 100.9547525 | G8: 112.3527061 | H8: =IF(OR(AND(F8<=0,G8>=0),AND(F8>=0,G8<=0),F8=G8),"-",IF((F8/G8-1)*100>0,(F8/G8-1)*100,(F8/G8-1)*100)) -> -10.14479671 | I8: 100.9547525 | J8: 112.3527061 | K8: =IF(OR(AND(I8<=0,J8>=0),AND(I8>=0,J8<=0),I8=J8),"-",IF((I8/J8-1)*100>0,(I8/J8-1)*100,(I8/J8-1)*100)) -> -10.14479671
B9: Cativo Industrial | C9: 14.553403 | D9: 24.065852 | E9: -39.52674935 | F9: 57.688074 | G9: 71.325973 | H9: -19.1205229 | I9: 57.688074 | J9: 71.325973 | K9: -19.1205229
B10: Livre Industrial | C10: 15.53685834 | D10: 13.96620817 | E10: 11.24607451 | F10: 43.26667845 | G10: 41.02673309 | H10: 5.459721492 | I10: 43.26667845 | J10: 41.02673309 | K10: 5.459721492
B11: Comercial | C11: 46.11792869 | D11: 56.63666354 | E11: -18.57230668 | F11: 144.5683043 | G11: 176.6246347 | H11: -18.14941073 | I11: 144.5683043 | J11: 176.6246347 | K11: -18.14941073
B12: Cativo Comercial | C12: 41.630616 | D12: 53.360892 | E12: -21.98290838 | F12: 131.307145 | G12: 165.955217 | H12: -20.87796493 | I12: 131.307145 | J12: 165.955217 | K12: -20.87796493
B13: Livre Comercial | C13: 4.487312693 | D13: 3.27577154 | E13: 36.98490991 | F13: 13.26115928 | G13: 10.66941767 | H13: 24.29131269 | I13: 13.26115928 | J13: 10.66941767 | K13: 24.29131269
B14: Rural | C14: 28.345693 | D14: 27.659729 | E14: 2.480009837 | F14: 84.420974 | G14: 83.322513 | H14: 1.318324377 | I14: 84.420974 | J14: 83.322513 | K14: 1.318324377
B15: Cativo Rural | C15: 28.345693 | D15: 27.659729 | E15: 2.480009837 | F15: 84.420974 | G15: 83.322513 | H15: 1.318324377 | I15: 84.420974 | J15: 83.322513 | K15: 1.318324377
B16: Livre Rural | C16: 0 | D16: 0 | E16: - | F16: 0 | G16: 0 | H16: - | I16: 0 | J16: 0 | K16: -
B17: Outros | C17: 32.18166 | D17: 33.056425 | E17: -2.646278295 | F17: 98.995825 | G17: 99.634615 | H17: -0.6411326024 | I17: 98.995825 | J17: 99.634615 | K17: -0.6411326024
B18: Cativo Outros | C18: 32.18166 | D18: 33.056425 | E18: -2.646278295 | F18: 98.995825 | G18: 99.634615 | H18: -0.6411326024 | I18: 98.995825 | J18: 99.634615 | K18: -0.6411326024
B19: Livre Outros | C19: 0 | D19: 0 | E19: - | F19: 0 | G19: 0 | H19: - | I19: 0 | J19: 0 | K19: -
B20: 1 Vendas de energia no mercado cativo | C20: 229.825703 | D20: 249.212123 | E20: -7.779083845 | F20: 696.352385 | G20: 754.692262 | H20: -7.730286891 | I20: 696.352385 | J20: 754.692262 | K20: -7.730286891
B21: 2 Energia associada aos consumidores livres (TUSD) | C21: 20.02417104 | D21: 17.24197971 | E21: 16.13614781 | F21: 56.52783773 | G21: 51.69615076 | H21: 9.346318636 | I21: 56.52783773 | J21: 51.69615076 | K21: 9.346318636
B22: 3 Mercado cativo + TUSD (1+2) | C22: 249.849874 | D22: 266.4541027 | E22: -6.231553015 | F22: 752.8802227 | G22: 806.3884128 | H22: -6.635535578 | I22: 752.8802227 | J22: 806.3884128 | K22: -6.635535578
B23: ='Por Segmento'!B23 -> 4 Fornecimento não faturado | C23: 15.156979 | D23: 7.403682 | E23: 104.7221774 | F23: 14.072886 | G23: -5.119334 | H23: - | I23: 14.072886 | J23: -5.119334 | K23: -
B24: 5 Mercado cativo + TUSD + fornecimento não faturado (3+4) | C24: 265.006853 | D24: 273.8577847 | E24: -3.231944522 | F24: 766.9531087 | G24: 801.2690788 | H24: -4.282702395 | I24: 766.9531087 | J24: 801.2690788 | K24: -4.282702395
